bitfinex/quotes_SOLUSD_20260310
["timestamp","ask_amount","ask_price","bid_price","bid_amount"]
[1773164098270,12.10570151,88.39,88.363,11.31695392]
[1773164098471,12.89371997,88.389,88.363,11.31695392]
[1773164098672,1.58009498,88.378,88.341,1.53277024]
[1773164098978,1.58009498,88.369,88.339,11.31999344]
[1773164099160,11.31362499,88.389,88.339,11.31999344]
[1773164099161,12.10570151,88.38,88.341,1.53277024]
[1773164099561,1.58009498,88.379,88.341,1.53277024]
[1773164099783,1.58009498,88.377,88.342,11.31964411]
[1773164099988,1.58009498,88.377,88.343,1.53277024]
[1773164100163,1.58009498,88.398,88.351,1.53277024]
[1773164100482,10.52560653,88.38,88.355,1.53277024]
[1773164100787,3.69383402,88.423,88.336,1.53277024]
[1773164100788,1.58009498,88.369,88.336,1.53277024]
[1773164100981,12.10570151,88.36,88.328,1.53277024]
[1773164101281,10.52560653,88.37,88.331,1.53277024]
[1773164101459,1.58009498,88.369,88.331,1.53277024]
[1773164101661,1.58009498,88.359,88.328,11.32143827]
[1773164101862,1.58009498,88.349,88.32,1.63277024]
[1773164102081,1.58009498,88.339,88.304,11.32439128]
[1773164102283,11.31752622,88.359,88.3,0.1]
[1773164102284,10.52560653,88.32,88.3,0.1]
[1773164102532,10.52560653,88.31,88.29,0.1]
[1773164102782,12.10570151,88.31,88.29,0.1]
[1773164102969,10.52560653,88.32,88.29,11.4262621]
[1773164103170,1.58009498,88.319,88.29,11.4262621]
[1773164103886,1.58009498,88.309,88.284,11.32698222]
[1773164104177,1.58009498,88.329,88.291,1.53277024]
[1773164104380,10.52560653,88.31,88.279,11.32764654]
[1773164104680,10.52560653,88.31,88.215,45.34339809]
[1773164104681,1.58009498,88.289,88.253,11.33102117]
[1773164104882,10.52560653,88.28,88.253,11.33102117]
[1773164105088,1.58009498,88.289,88.254,1.53277024]
[1773164105391,10.52560653,88.28,88.254,1.53277024]
[1773164105574,10.52560653,88.29,88.254,1.53277024]
[1773164105984,11.32442574,88.305,88.261,1.53277024]
[1773164106191,10.52560653,88.31,88.271,1.53277024]
[1773164106391,11.32387412,88.309,88.271,1.53277024]
[1773164106587,10.52560653,88.31,88.271,1.53277024]
[1773164107090,28.30428717,88.326,88.281,1.53277024]
[1773164107091,21.8481048,88.32,88.281,1.53277024]
[1773164107399,21.8481048,88.32,88.28,10.52560653]
[1773164107400,10.52560653,88.33,88.291,1.53277024]
[1773164107775,10.52560653,88.31,88.291,1.53277024]
[1773164108089,3.69383402,88.352,88.278,11.32785065]
[1773164108090,10.52560653,88.3,88.278,11.32785065]
[1773164108879,1.58009498,88.289,88.258,11.33041763]
[1773164109290,10.52560653,88.29,88.259,1.53277024]
[1773164109583,21.85075282,88.3,88.261,1.53277024]
[1773164109778,21.84939881,88.31,88.271,1.53277024]
[1773164110299,10.52560653,88.31,88.273,1.53277024]
[1773164110681,11.32259196,88.319,88.281,1.53277024]
[1773164110889,10.52560653,88.31,88.281,1.53277024]
[1773164111088,10.52560653,88.3,88.272,11.32862062]
[1773164111294,1.58009498,88.299,88.272,11.32862062]
[1773164111693,12.10570151,88.29,88.257,1.53277024]
[1773164111993,10.52560653,88.28,88.258,11.33041763]
[1773164112197,10.52560653,88.27,88.238,1.53277024]
[1773164112397,10.52560653,88.27,88.241,11.33260049]
[1773164112694,11.3269477,88.286,88.251,1.53277024]
[1773164113094,11.3269477,88.286,88.241,11.33260049]
[1773164113095,1.58009498,88.269,88.241,11.33260049]
[1773164113304,10.52560653,88.26,88.232,11.33375646]
[1773164113493,1.58009498,88.249,88.221,11.33516963]
[1773164113801,1.58009498,88.229,88.21,0.1]
[1773164114007,1.58009498,88.239,88.21,0.1]
[1773164114386,45.31029577,88.281,88.2,0.1]
[1773164114387,10.52560653,88.22,88.2,0.1]
[1773164114587,10.52560653,88.26,88.191,11.33902552]
[1773164114588,10.52560653,88.21,88.191,11.33902552]
[1773164115795,10.52560653,88.22,88.19,1.63277024]
[1773164116205,10.52560653,88.23,88.191,1.53277024]
[1773164116508,10.52560653,88.24,88.211,1.53277024]
[1773164117289,39.65466451,88.262,88.192,1.13388969]
[1773164117290,10.52560653,88.23,88.193,1.53277024]
[1773164117485,10.52560653,88.23,88.195,1.53277024]
[1773164117689,10.52560653,88.24,88.203,1.53277024]
[1773164117887,10.52560653,88.26,88.221,1.53277024]
[1773164118089,12.10570151,88.27,88.231,1.53277024]
[1773164118293,10.52560653,88.26,88.231,1.53277024]
[1773164119109,10.52560653,88.27,88.231,1.53277024]
[1773164119291,11.32618273,88.291,88.251,1.47342854]
[1773164119491,10.52560653,88.29,88.259,1.47342854]
[1773164119691,10.52560653,88.29,88.261,1.47342854]
[1773164119903,10.52560653,88.28,88.241,1.47342854]
[1773164120099,10.52560653,88.28,88.251,1.47342854]
[1773164120494,28.31299529,88.299,88.226,41.14427386]
[1773164120495,10.52560653,88.26,88.226,41.14427386]
[1773164120702,10.52560653,88.25,88.226,1.47342854]
[1773164121095,11.95357856,88.26,88.226,1.47342854]
[1773164121518,10.52560653,88.26,88.231,1.47342854]
[1773164121723,11.33028926,88.259,88.231,1.47342854]
[1773164122019,10.52560653,88.25,88.224,11.33474952]
[1773164122218,10.52560653,88.25,88.22,1.47342854]
[1773164122534,41.08398444,88.259,88.18,0.1]
[1773164122535,10.52560653,88.23,88.201,11.33773993]
[1773164122719,1.42797203,88.306,88.227,3.69383402]
[1773164123013,1.42797203,88.306,88.22,10.52560653]
[1773164123014,1.42797203,88.279,88.24,1.47342854]
[1773164123194,1.42797203,88.279,88.241,1.47342854]
[1773164123395,1.42797203,88.279,88.25,10.52560653]
[1773164123722,1.42797203,88.289,88.26,10.52560653]
[1773164123927,11.32656759,88.288,88.251,1.47342854]
[1773164124099,1.42797203,88.287,88.252,11.33118796]
[1773164124415,1.42797203,88.287,88.253,1.47342854]
[1773164124806,1.42797203,88.287,88.252,11.33118796]
[1773164125120,1.42797203,88.287,88.252,41.1325864]
[1773164125320,1.42797203,88.298,88.26,10.52560653]
[1773164125521,1.42797203,88.298,88.228,45.33702294]
[1773164125522,1.42797203,88.269,88.239,11.33285735]
[1773164125817,1.42797203,88.269,88.24,10.52560653]
[1773164126120,11.329134,88.268,88.241,11.33260049]
[1773164126418,1.42797203,88.259,88.225,11.3346557]
[1773164127416,1.42797203,88.259,88.195,1.13385112]
[1773164127417,1.42797203,88.239,88.196,11.33838269]
[1773164127617,1.42797203,88.219,88.191,11.33890135]
[1773164127816,11.95357856,88.23,88.2,10.52560653]
[1773164128233,10.52560653,88.22,88.19,10.62560653]
[1773164128439,1.42797203,88.209,88.19,0.1]
[1773164128601,11.95357856,88.22,88.191,11.33902552]
[1773164128815,1.42797203,88.228,88.191,12.81245406]
[1773164129017,1.42797203,88.228,88.191,41.16001787]
[1773164129448,11.33349368,88.235,88.192,1.47342854]
[1773164129617,11.33349368,88.235,88.21,10.52560653]
[1773164129940,10.52560653,88.23,88.201,1.47342854]
[1773164130318,10.52560653,88.23,88.202,11.33761139]
[1773164130519,1.42797203,88.219,88.19,0.1]
[1773164130717,10.52560653,88.21,88.19,0.1]
[1773164130916,1.42797203,88.209,88.19,0.1]
[1773164132251,10.58139479,88.2,88.19,0.1]
[1773164132626,1.42797203,88.207,88.19,0.1]
[1773164133534,11.33684019,88.208,88.19,0.1]
[1773164133732,1.42797203,88.207,88.19,0.1]
[1773164134343,1.42797203,88.227,88.191,1.47342854]
[1773164134647,12.76239773,88.227,88.191,1.47342854]
[1773164135147,1.42797203,88.226,88.191,1.47342854]
[1773164136045,1.42797203,88.226,88.19,10.68139479]
[1773164136046,1.42797203,88.209,88.19,0.1]
[1773164136227,1.42797203,88.198,88.18,0.1]
[1773164136431,1.42797203,88.198,88.166,11.34214944]
[1773164137344,10.58139479,88.19,88.166,11.34214944]
[1773164137645,1.42797203,88.198,88.167,1.47342854]
[1773164137840,10.58139479,88.19,88.166,11.34214944]
[1773164138036,1.42797203,88.198,88.17,10.58139479]
[1773164138224,10.58139479,88.2,88.171,11.34159757]
[1773164138428,1.42797203,88.218,88.181,1.47342854]
[1773164138727,1.42797203,88.244,88.21,10.58139479]
[1773164139240,11.33170156,88.248,88.19,10.58139479]
[1773164139241,1.42797203,88.229,88.19,10.58139479]
[1773164139445,1.42797203,88.24,88.21,10.58139479]
[1773164139626,12.00936682,88.24,88.21,10.58139479]
[1773164140144,1.42797203,88.24,88.21,10.58139479]
[1773164140339,11.33285735,88.239,88.211,11.33645463]
[1773164140746,1.42797203,88.251,88.23,10.58139479]
[1773164141122,1.42797203,88.249,88.211,11.33645463]
[1773164141737,1.42797203,88.249,88.22,10.58139479]
[1773164141944,1.42797203,88.269,88.231,1.47342854]
[1773164142449,1.42797203,88.267,88.232,11.33375646]
[1773164142638,1.42797203,88.277,88.25,10.58139479]
[1773164142838,11.32722183,88.283,88.26,10.58139479]
[1773164143028,1.42797203,88.287,88.26,10.58139479]
[1773164143229,1.42797203,88.307,88.271,1.47342854]
[1773164143430,1.42797203,88.307,88.28,10.58139479]
[1773164143655,11.3236192,88.311,88.28,10.58139479]
[1773164143856,11.32309003,88.316,88.29,10.58139479]
[1773164144035,1.42797203,88.329,88.3,10.58139479]
[1773164144349,11.32143942,88.328,88.294,11.3257979]
[1773164144546,1.42797203,88.327,88.294,12.79922644]
[1773164144949,10.78139479,88.35,88.311,1.47342854]
[1773164145148,10.78139479,88.35,88.294,11.3257979]
[1773164145149,1.42797203,88.339,88.294,11.3257979]
[1773164145342,1.42797203,88.329,88.3,10.58139479]
[1773164145542,10.58139479,88.34,88.31,10.58139479]
[1773164145841,10.58139479,88.34,88.295,1.47342854]
[1773164145842,10.58139479,88.33,88.3,10.58139479]
[1773164146041,1.42797203,88.329,88.295,1.47342854]
[1773164146248,1.42797203,88.329,88.29,10.58139479]
[1773164146448,11.32143827,88.328,88.3,10.58139479]
[1773164146830,11.32143827,88.328,88.297,1.47342854]
[1773164146831,1.42797203,88.319,88.28,10.58139479]
[1773164147046,1.42797203,88.309,88.27,10.58139479]
[1773164147239,1.24199437,88.299,88.266,11.3293907]
[1773164148154,1.24199437,88.289,88.25,10.58139479]
[1773164148553,1.24199437,88.279,88.244,11.33212098]
[1773164148851,10.58139479,88.28,88.239,12.58774999]
[1773164148852,10.58139479,88.27,88.239,12.58774999]
[1773164149059,11.82338916,88.28,88.241,1.25496683]
[1773164149462,1.25521786,88.279,88.241,1.25496683]
[1773164149639,10.58139479,88.27,88.241,1.25496683]
[1773164149960,1.25521786,88.287,88.251,1.32873098]
[1773164150133,10.58139479,88.28,88.25,10.58139479]
[1773164150338,10.58139479,88.29,88.26,10.58139479]
[1773164150651,11.3264393,88.289,88.252,1.32873098]
[1773164150855,11.3264393,88.289,88.26,10.58139479]
[1773164151062,12.58165716,88.289,88.26,10.58139479]
[1773164151355,10.58139479,88.29,88.261,1.32873098]
[1773164151553,10.58139479,88.29,88.26,10.58139479]
[1773164151554,1.25521786,88.288,88.251,11.33131635]
[1773164152050,10.58139479,88.28,88.251,11.33131635]
[1773164152253,1.25521786,88.288,88.252,1.32873098]
[1773164152756,11.32669588,88.287,88.253,11.33105956]
[1773164152942,1.25521786,88.288,88.254,1.32873098]
[1773164153254,10.58139479,88.29,88.26,10.58139479]
[1773164153446,1.25521786,88.299,88.27,10.58139479]
[1773164153758,1.25521786,88.299,88.261,1.32873098]
[1773164153759,30.0,88.278,88.261,1.32873098]
[1773164154254,30.0,88.278,88.25,10.58139479]
[1773164154436,30.0,88.278,88.244,1.13322152]
[1773164154437,1.25521786,88.277,88.24,10.58139479]
[1773164154636,10.58139479,88.27,88.241,11.33260049]
[1773164154842,30.0,88.275,88.241,11.33260049]
[1773164155066,30.0,88.275,88.242,1.32873098]
[1773164155261,10.58139479,88.25,88.221,1.32873098]
[1773164155940,10.58139479,88.25,88.21,40.05649324]
[1773164155941,10.58139479,88.24,88.21,10.58139479]
[1773164156146,11.83661265,88.26,88.221,1.32873098]
[1773164156343,10.58139479,88.25,88.221,1.32873098]
[1773164157243,1.25521786,88.259,88.222,1.32873098]
[1773164158448,1.25521786,88.239,88.205,1.32873098]
[1773164158648,1.25521786,88.239,88.21,10.58139479]
[1773164158964,1.25521786,88.219,88.181,12.66904238]
[1773164159164,10.58139479,88.21,88.181,12.66904238]
[1773164159353,11.3355551,88.218,88.19,10.58139479]
[1773164160263,11.3355551,88.218,88.182,1.32873098]
[1773164160465,10.58139479,88.24,88.201,1.32873098]
[1773164160764,1.25521786,88.239,88.201,1.32873098]
[1773164161161,1.25521786,88.239,88.21,10.58139479]
[1773164161359,11.33298578,88.238,88.203,1.32873098]
[1773164161559,11.33028926,88.259,88.221,1.32873098]
[1773164161854,1.25521786,88.274,88.24,10.58139479]
[1773164162057,10.58139479,88.27,88.24,10.58139479]
[1773164162259,1.25521786,88.274,88.24,10.58139479]
[1773164162585,21.90910798,88.28,88.25,10.58139479]
[1773164162586,11.32777287,88.279,88.25,10.58139479]
[1773164162761,10.58139479,88.28,88.25,10.58139479]
[1773164163060,11.32733003,88.283,88.25,10.58139479]
[1773164163260,1.25521786,88.285,88.252,1.32873098]
[1773164163463,11.32666313,88.288,88.26,10.58139479]
[1773164164249,1.25521786,88.287,88.251,11.33131635]
[1773164164453,1.25521786,88.269,88.23,11.91012577]
[1773164164648,1.25521786,88.249,88.21,10.58139479]
[1773164164865,1.25521786,88.249,88.212,1.32873098]
[1773164165172,1.25521786,88.249,88.211,11.33645463]
[1773164165173,1.25521786,88.284,88.23,11.91012577]
[1773164165362,10.58139479,88.25,88.22,10.58139479]
[1773164165667,1.25521786,88.259,88.22,10.58139479]
[1773164165873,1.25521786,88.249,88.209,1.32873098]
[1773164166176,39.651969,88.268,88.196,11.33838269]
[1773164166177,10.58139479,88.23,88.196,11.33838269]
[1773164166671,1.25521786,88.239,88.201,1.32873098]
[1773164166861,10.58139479,88.23,88.201,1.32873098]
[1773164167263,1.25521786,88.262,88.203,1.32873098]
[1773164167462,39.65421523,88.263,88.203,1.32873098]
[1773164167463,1.25521786,88.239,88.203,1.32873098]
[1773164167772,10.58139479,88.23,88.203,1.32873098]
[1773164168073,1.25521786,88.239,88.21,10.58139479]
[1773164168269,1.25521786,88.25,88.211,1.32873098]
[1773164168574,1.25521786,88.249,88.22,10.58139479]
[1773164169360,11.33170156,88.248,88.22,21.91656823]
[1773164169561,11.33170156,88.248,88.221,1.32873098]
[1773164169762,11.33028926,88.259,88.221,1.32873098]
[1773164169961,11.33028926,88.259,88.23,10.58139479]
[1773164170249,11.33028926,88.259,88.221,1.32873098]
[1773164170455,10.58139479,88.25,88.221,1.32873098]
[1773164170663,11.33028926,88.259,88.23,10.58139479]
[1773164170976,1.25521786,88.268,88.231,1.32873098]
[1773164171365,11.32926235,88.267,88.232,11.33375646]
[1773164171681,1.25521786,88.302,88.234,1.32873098]
[1773164171861,1.25521786,88.289,88.26,10.58139479]
[1773164172374,1.25521786,88.289,88.25,10.58139479]
[1773164172581,10.58139479,88.26,88.23,10.58139479]
[1773164172874,1.25521786,88.269,88.24,10.58139479]
[1773164173273,1.25521786,88.279,88.25,10.58139479]
[1773164173456,11.32785065,88.278,88.25,10.58139479]
[1773164173663,1.25521786,88.277,88.242,11.33240336]
[1773164173965,1.25521786,88.277,88.25,10.58139479]
[1773164174162,11.32669588,88.287,88.26,10.58139479]
[1773164174367,45.2761255,88.347,88.242,11.33240336]
[1773164174368,11.3247718,88.302,88.27,10.58139479]
[1773164174567,1.25521786,88.299,88.261,1.32873098]
[1773164174776,1.25521786,88.299,88.27,10.58139479]
[1773164175355,11.32528483,88.298,88.271,11.32874896]
[1773164175567,12.57909198,88.309,88.271,11.32874896]
[1773164175876,11.83661265,88.32,88.281,1.32873098]
[1773164176068,1.25521786,88.318,88.29,10.58139479]
[1773164177381,11.32284837,88.317,88.29,10.58139479]
[1773164177610,11.32224106,88.322,88.29,23.23636726]
[1773164177882,1.25521786,88.319,88.28,10.58139479]
[1773164178077,1.25521786,88.309,88.28,10.58139479]
[1773164179779,11.32400235,88.308,88.28,21.90886796]
[1773164180379,11.32400235,88.308,88.28,10.58139479]
[1773164181274,12.46797305,88.308,88.28,10.58139479]
[1773164181470,1.1439707,88.299,88.26,10.58139479]
[1773164181675,10.58139479,88.29,88.26,10.58139479]
[1773164181881,11.32617007,88.292,88.261,11.33003251]
[1773164182176,11.32617007,88.292,88.246,28.32988115]
[1773164182177,1.1439707,88.289,88.25,10.58139479]
[1773164182384,11.32617007,88.292,88.271,1.10436319]
[1773164183386,11.32537874,88.298,88.271,1.10436319]
[1773164184662,11.32537874,88.298,88.27,10.58139479]
[1773164184868,12.46934944,88.298,88.27,10.58139479]
[1773164185079,12.46934944,88.298,88.271,11.32874896]
[1773164185478,11.32537874,88.298,88.271,11.32874896]
[1773164185680,11.32537874,88.298,88.271,12.43311215]
[1773164185879,1.1439707,88.308,88.272,1.10436319]
[1773164186278,11.32413058,88.307,88.281,1.10436319]
[1773164186586,39.62907187,88.319,88.281,1.10436319]
[1773164186886,1.1439707,88.318,88.29,10.58139479]
[1773164187386,45.26097942,88.377,88.301,1.10436319]
[1773164187387,11.32002852,88.339,88.301,1.10436319]
[1773164187582,11.32002852,88.339,88.31,10.58139479]
[1773164187775,11.32002852,88.339,88.31,11.68575798]
[1773164187971,1.1439707,88.329,88.277,1.13279789]
[1773164188177,1.1439707,88.319,88.28,10.58139479]
[1773164188579,10.58139479,88.32,88.28,10.58139479]
[1773164188580,1.1439707,88.317,88.281,11.3274657]
[1773164189877,1.1439707,88.315,88.28,10.58139479]
[1773164190683,1.1439707,88.315,88.29,10.58139479]
[1773164191086,11.32297658,88.316,88.29,10.58139479]
[1773164191384,11.32297658,88.316,88.275,39.64882468]
[1773164191385,1.1439707,88.336,88.31,10.58139479]
[1773164191893,0.2,88.35,88.331,11.32105376]
[1773164192187,1.1439707,88.339,88.3,10.58139479]
[1773164192387,1.1439707,88.339,88.294,12.22268779]
[1773164192388,39.61561534,88.349,88.32,10.58139479]
[1773164192686,11.51873135,88.35,88.32,10.58139479]
[1773164192889,1.1439707,88.349,88.32,10.58139479]
[1773164193277,1.1439707,88.349,88.33,10.58139479]
[1773164193782,1.1439707,88.349,88.32,10.5447934]
[1773164193981,11.31887535,88.348,88.32,10.5447934]
[1773164194183,1.1439707,88.347,88.32,10.5447934]
[1773164194590,1.1439707,88.347,88.311,0.88850147]
[1773164194591,1.1439707,88.347,88.31,10.5447934]
[1773164194794,1.1439707,88.347,88.267,45.3168179]
[1773164194795,1.1439707,88.319,88.28,11.42658427]
[1773164194995,1.1439707,88.309,88.274,11.32829744]
[1773164195181,1.1439707,88.309,88.271,11.32874896]
[1773164195498,1.1439707,88.309,88.28,10.5447934]
[1773164195793,1.1439707,88.309,88.271,11.32874896]
[1773164196295,1.1439707,88.307,88.271,11.32874896]
[1773164197191,1.1439707,88.307,88.262,11.32987348]
[1773164197395,1.1439707,88.307,88.26,10.5447934]
[1773164197396,1.1439707,88.289,88.257,11.33051698]
[1773164197606,1.1439707,88.289,88.247,0.87523353]
[1773164197607,1.1439707,88.279,88.24,10.5447934]
[1773164197799,1.1439707,88.279,88.241,11.33260049]
[1773164197993,11.6887641,88.27,88.24,10.5447934]
[1773164198188,1.1439707,88.259,88.228,11.33421864]
[1773164198399,1.1439707,88.259,88.23,10.5447934]
[1773164198578,1.1439707,88.259,88.228,11.33421864]
[1773164198579,10.5447934,88.24,88.208,11.33684019]
[1773164198783,1.1439707,88.249,88.21,10.5447934]
[1773164198985,1.1439707,88.249,88.22,10.5447934]
[1773164199188,1.1439707,88.249,88.21,10.5447934]
[1773164200116,1.1439707,88.247,88.21,10.5447934]
[1773164200299,10.5447934,88.24,88.206,50.96]
[1773164200500,10.5447934,88.24,88.207,11.33696872]
[1773164200884,1.1439707,88.239,88.207,11.33696872]
[1773164201084,11.6887641,88.23,88.197,11.33818804]
[1773164201300,1.1439707,88.23,88.2,10.5447934]
[1773164203399,11.33285735,88.239,88.202,1.10436319]
[1773164204113,10.5447934,88.21,88.156,11.34352738]
[1773164204314,10.5447934,88.19,88.16,10.5447934]
[1773164204491,175.65928896,88.239,88.14,11.44552338]
[1773164204492,10.5447934,88.18,88.14,11.44552338]
[1773164204817,220.99071837,88.239,88.142,1.10436319]
[1773164204818,4.82477569,88.235,88.142,1.10436319]
[1773164204993,220.99071837,88.239,88.14,0.1]
[1773164204994,10.5447934,88.15,88.14,0.1]
[1773164205192,11.34442818,88.149,88.14,0.1]
[1773164205502,1.1439707,88.148,88.111,1.10436319]
[1773164205689,11.34442818,88.149,88.111,1.10436319]
[1773164205888,10.5447934,88.14,88.111,1.10436319]
[1773164206100,11.6887641,88.14,88.105,11.35009363]
[1773164206291,1.1439707,88.139,88.1,11.64915659]
[1773164206490,1.1439707,88.139,88.08,0.1]
[1773164206491,1.1439707,88.129,88.095,1.1351382]
[1773164206695,1.1439707,88.129,88.09,10.5447934]
[1773164207004,1.1439707,88.148,88.1,1.10436319]
[1773164207196,10.5447934,88.13,88.1,1.10436319]
[1773164207507,10.5447934,88.13,88.09,10.5447934]
[1773164207707,1.05369515,88.142,88.11,10.5447934]
[1773164207899,11.34452742,88.149,88.11,10.5447934]
[1773164208093,10.5447934,88.14,88.11,10.5447934]
[1773164208288,10.5447934,88.14,88.091,0.56845723]
[1773164208605,1.05369515,88.139,88.1,10.5447934]
[1773164208821,11.34452742,88.149,88.12,10.5447934]
[1773164209117,1.05369515,88.139,88.1,10.5447934]
[1773164209316,10.5447934,88.14,88.08,0.1]
[1773164209317,10.5447934,88.11,88.08,0.1]
[1773164209616,1.03283121,88.119,88.08,0.1]
[1773164209787,10.5447934,88.11,88.08,0.1]
[1773164210105,1.03283121,88.109,88.08,0.1]
[1773164210710,39.71496005,88.128,88.08,10.6447934]
[1773164210711,1.03283121,88.119,88.08,10.6447934]
[1773164211113,10.5447934,88.11,88.08,0.1]
[1773164211404,11.34957836,88.109,88.08,0.1]
[1773164211808,10.5447934,88.09,88.053,1.00043344]
[1773164212012,1.03283121,88.099,88.017,45.44566126]
[1773164212013,1.03283121,88.099,88.06,1.10043344]
[1773164212194,39.72352426,88.109,88.07,10.5447934]
[1773164212386,10.5447934,88.12,88.081,1.00043344]
[1773164212591,1.03283121,88.119,88.081,1.00043344]
[1773164212907,1.03283121,88.119,88.08,10.5447934]
[1773164212908,1.03283121,88.099,88.062,1.00043344]
[1773164213104,10.5447934,88.11,88.07,11.54522684]
[1773164213307,1.03283121,88.119,88.08,11.54522684]
[1773164213821,10.5447934,88.11,88.08,11.54522684]
[1773164214011,1.03283121,88.109,88.072,11.35433737]
[1773164214517,1.03283121,88.109,88.08,10.5447934]
[1773164214704,1.03283121,88.109,88.072,12.35477081]
[1773164214905,11.57762461,88.12,88.081,1.00043344]
[1773164215208,10.5447934,88.12,88.09,10.5447934]
[1773164215401,11.34644838,88.134,88.1,11.54522684]
[1773164215604,12.37927959,88.134,88.1,1.00043344]
[1773164215904,1.03283121,88.128,88.091,11.35182176]
[1773164216302,1.03283121,88.128,88.091,12.3522552]
[1773164216498,1.03283121,88.128,88.092,1.00043344]
[1773164216900,11.34700268,88.129,88.084,11.35268246]
[1773164216901,1.03283121,88.119,88.084,11.35268246]
[1773164217099,1.03283121,88.109,88.075,11.35395969]
[1773164217300,1.03283121,88.109,88.074,1.00043344]
[1773164217629,10.5447934,88.11,88.08,10.5447934]
[1773164217802,1.03283121,88.12,88.09,10.5447934]
[1773164218003,11.34829038,88.119,88.09,10.5447934]
[1773164218719,11.34829038,88.119,88.091,11.35189746]
[1773164219016,22.92589777,88.12,88.091,11.35189746]
[1773164219615,1.03283121,88.119,88.08,10.5447934]
[1773164220194,1.03283121,88.119,88.043,45.43185399]
[1773164220195,1.03283121,88.109,88.052,0.56894725]
[1773164220419,1.03283121,88.109,88.001,45.45368146]
[1773164220420,1.03283121,88.069,88.032,11.35950563]
[1773164220620,10.5447934,88.06,88.031,11.35963467]
[1773164220795,1.03283121,88.069,88.031,11.35963467]
[1773164221000,1.03283121,88.059,88.03,10.74534585]
[1773164221210,1.41869729,88.109,88.0,10.5447934]
[1773164221211,10.5447934,88.04,88.0,10.5447934]
[1773164221414,11.57762461,88.03,87.996,11.36415291]
[1773164221698,10.5447934,88.03,87.996,11.36415291]
[1773164222117,11.57762461,88.04,88.001,1.00043344]
[1773164222319,11.57762461,88.04,87.959,0.57160462]
[1773164222320,1.03283121,88.009,87.959,0.57160462]
[1773164222498,1.03283121,88.009,87.951,1.00043344]
[1773164222499,10.5447934,87.99,87.951,1.00043344]
[1773164222698,10.5447934,87.99,87.96,10.5447934]
[1773164222919,1.03283121,88.009,87.98,10.5447934]
[1773164223105,1.03283121,88.009,87.962,1.00043344]
[1773164223311,1.03283121,88.009,87.95,39.79524079]
[1773164223312,10.5447934,87.99,87.951,1.00043344]
[1773164223623,1.03283121,87.999,87.961,1.00043344]
[1773164223799,10.5447934,87.99,87.95,22.91522602]
[1773164224119,1.03283121,87.999,87.96,10.5447934]
[1773164224415,10.5447934,87.99,87.951,11.36996736]
[1773164224618,11.36320951,88.004,87.952,1.00043344]
[1773164224810,10.5447934,88.01,87.971,1.00043344]
[1773164225004,1.03283121,87.999,87.96,10.5447934]
[1773164225202,1.03283121,87.999,87.953,1.00043344]
[1773164225203,10.5447934,87.99,87.953,1.00043344]
[1773164225612,1.03283121,87.999,87.96,10.5447934]
[1773164225816,11.57762461,88.01,87.97,10.5447934]
[1773164226001,11.36176145,88.015,87.952,0.57238636]
[1773164226002,10.5447934,87.99,87.952,0.57238636]
[1773164226203,120.82542548,88.019,87.942,1.00043344]
[1773164226204,12.39917999,87.979,87.942,1.00043344]
[1773164226407,1.03283121,87.978,87.94,10.5447934]
[1773164226603,1.03283121,87.978,87.941,11.37126027]
[1773164227001,1.03283121,87.983,87.941,39.79941096]
[1773164227325,1.03283121,87.983,87.749,12.67544772]
[1773164227326,10.5447934,87.96,87.926,1.00043344]
[1773164227526,10.5447934,87.96,87.925,11.37332954]
[1773164227527,1.03283121,87.959,87.925,11.37332954]
[1773164227706,10.5447934,87.95,87.914,1.00043344]
[1773164227901,1.03283121,87.959,87.914,1.00043344]
[1773164227902,1.03283121,87.959,87.93,10.5447934]
[1773164228108,1.03283121,87.969,87.93,10.5447934]
[1773164228305,11.36777009,87.968,87.93,10.5447934]
[1773164228512,10.5447934,87.98,87.941,1.00043344]
[1773164228726,1.03283121,87.979,87.941,1.00043344]
[1773164229631,11.57762461,87.97,87.93,10.5447934]
[1773164229831,1.03283121,87.959,87.925,11.37332954]
[1773164230024,10.5447934,87.94,87.904,1.00043344]
[1773164230327,10.5447934,87.94,87.9,10.5447934]
[1773164230832,11.37061378,87.946,87.911,1.00043344]
[1773164231029,1.03283121,87.968,87.94,10.5447934]
[1773164231233,1.53000003,87.97,87.94,10.5447934]
[1773164231533,10.5447934,88.0,87.96,11.54522684]
[1773164231712,1.03283121,87.999,87.949,1.00043344]
[1773164231912,1.03283121,87.999,87.97,10.5447934]
[1773164232313,1.03283121,87.999,87.971,11.36738243]
[1773164232514,11.36334781,88.003,87.97,10.5447934]
[1773164232947,1.03283121,88.002,87.97,10.5447934]
[1773164233233,1.03283121,87.979,87.94,10.5447934]
[1773164233430,11.57762461,88.0,87.96,10.5447934]
[1773164233632,1.03283121,87.999,87.96,10.5447934]
[1773164234229,1.03283121,87.989,87.95,10.5447934]
[1773164234648,1.03283121,87.987,87.95,10.5447934]
[1773164234930,1.03283121,87.987,87.914,0.57331]
[1773164234931,1.03283121,88.01,87.97,10.5447934]
[1773164235132,10.5447934,87.99,87.951,1.00043344]
[1773164235336,11.57762461,87.99,87.951,1.00043344]
[1773164235539,1.03283121,87.989,87.951,1.00043344]